fUSD/lending_fUSD_20251006
["ID","MTS","AMOUNT","RATE_DAILY","PERIOD"]
[389651598,1759767152806,-151.0,0.00016438,2]
[389651599,1759767152815,-151.0,0.00016438,2]
[389651600,1759767152825,-2026.15,0.00016438,2]
[389651601,1759767152835,-151.0,0.00016438,2]
[389651602,1759767152845,-151.0,0.00016438,2]
[389651603,1759767152855,-2026.15,0.00016438,2]
[389651604,1759767152864,-2026.15,0.00016438,2]
[389651605,1759767152874,-2026.15,0.00016438,2]
[389651606,1759767152884,-151.0,0.00016438,2]
[389651607,1759767152893,-2026.15,0.00016438,2]
[389651608,1759767152903,-151.0,0.00016438,2]
[389651609,1759767152912,-2026.15,0.00016438,2]
[389651610,1759767152923,-151.0,0.00016438,2]
[389651611,1759767152932,-2026.15,0.00016438,2]
[389651612,1759767152942,-1665.33,0.00016438,2]
[389651613,1759767152951,-151.0,0.00016438,2]
[389651614,1759767152960,-1665.33,0.00016438,2]
[389651615,1759767152970,-2026.15,0.00016438,2]
[389651616,1759767152980,-2026.15,0.00016438,2]
[389651617,1759767152989,-1665.33,0.00016438,2]
[389651618,1759767152999,-2026.15,0.00016438,2]
[389651619,1759767153008,-156.806416,0.00016438,2]
[389651620,1759767153018,-1665.33,0.00016438,2]
[389651621,1759767153027,-2026.23,0.00016438,2]
[389651622,1759767153036,-500.0,0.00016438,2]
[389651623,1759767153046,-1665.33,0.00016438,2]
[389651624,1759767153058,-500.0,0.00016438,2]
[389651625,1759767153068,-1665.33,0.00016438,2]
[389651626,1759767153077,-543.8371126,0.00016438,2]
[389651627,1759767153086,-500.0,0.00016438,2]
[389651628,1759767153095,-1665.33,0.00016438,2]
[389651629,1759767153106,-500.0,0.00016438,2]
[389651630,1759767153116,-500.0,0.00016438,2]
[389651631,1759767153126,-500.0,0.00016438,2]
[389651632,1759767153136,-151.0,0.00016438,2]
[389651633,1759767153145,-500.0,0.00016438,2]
[389651634,1759767153155,-151.0,0.00016438,2]
[389651635,1759767153164,-500.0,0.00016438,2]
[389651636,1759767153175,-502.99409054,0.00016438,2]
[389651637,1759767153184,-151.0,0.00016438,2]
[389651638,1759767153193,-500.0,0.00016438,2]
[389651639,1759767153203,-500.0,0.00016438,2]
[389651640,1759767153213,-500.0,0.00016438,2]
[389651641,1759767153224,-151.0,0.00016438,2]
[389651642,1759767153234,-500.0,0.00016438,2]
[389651643,1759767153245,-1665.33,0.00016438,2]
[389651644,1759767153255,-500.0,0.00016438,2]
[389651645,1759767153266,-151.0,0.00016438,2]
[389651646,1759767153275,-1665.33,0.00016438,2]
[389651647,1759767153285,-500.0,0.00016438,2]
[389651648,1759767153295,-151.0,0.00016438,2]
[389651649,1759767153305,-1665.33,0.00016438,2]
[389651650,1759767153315,-500.0,0.00016438,2]
[389651651,1759767153327,-500.0,0.00016438,2]
[389651652,1759767153337,-151.0,0.00016438,2]
[389651653,1759767153347,-1665.33,0.00016438,2]
[389651654,1759767153358,-315.47308808,0.00016438,2]
[389651655,1759767153369,-500.0,0.00016438,2]
[389651656,1759767153380,-1665.33,0.00016438,2]
[389651657,1759767153392,-500.0,0.00016438,2]
[389651658,1759767153403,-1665.33,0.00016438,2]
[389651659,1759767153413,-151.0,0.00016438,2]
[389651660,1759767153424,-1665.33,0.00016438,2]
[389651661,1759767153434,-151.0,0.00016438,2]
[389651662,1759767153444,-500.0,0.00016438,2]
[389651663,1759767153454,-1665.33,0.00016438,2]
[389651664,1759767153466,-151.0,0.00016438,2]
[389651665,1759767153476,-500.0,0.00016438,2]
[389651666,1759767153486,-150.0,0.00016438,2]
[389651667,1759767153497,-1665.33,0.00016438,2]
[389651668,1759767153507,-500.0,0.00016438,2]
[389651669,1759767153518,-500.0,0.00016438,2]
[389651670,1759767153528,-151.0,0.00016438,2]
[389651671,1759767153539,-1665.33,0.00016438,2]
[389651672,1759767153549,-500.0,0.00016438,2]
[389651673,1759767153559,-500.0,0.00016438,2]
[389651674,1759767153569,-1665.33,0.00016438,2]
[389651675,1759767153580,-623.79412034,0.00016438,2]
[389651676,1759767153590,-151.0,0.00016438,2]
[389651677,1759767153600,-1665.33,0.00016438,2]
[389651678,1759767153609,-151.0,0.00016438,2]
[389651679,1759767153619,-1665.33,0.00016438,2]
[389651680,1759767153629,-151.0,0.00016438,2]
[389651681,1759767153639,-1665.33,0.00016438,2]
[389651682,1759767153650,-500.0,0.00016438,2]
[389651683,1759767153660,-151.0,0.00016438,2]
[389651684,1759767153671,-1665.33,0.00016438,2]
[389651685,1759767153680,-1665.33,0.00016438,2]
[389651686,1759767153690,-1665.3420025,0.00016438,2]
[389651687,1759767153700,-500.0,0.00016438,2]
[389651688,1759767153710,-500.0,0.00016438,2]
[389651689,1759767153719,-457.83215473,0.00016438,2]
[389651690,1759767153729,-151.0,0.00016438,2]
[389651691,1759767153739,-151.0,0.00016438,2]
[389651692,1759767153748,-204.280925,0.00016438,2]
[389651693,1759767153758,-151.0,0.00016438,2]
[389651694,1759767153767,-151.0,0.00016438,2]
[389651695,1759767153777,-151.0,0.00016438,2]
[389651696,1759767153787,-151.0,0.00016438,2]
[389651697,1759767153797,-304.51,0.00016438,2]
[389651698,1759767153807,-1000.0,0.00016438,2]
[389651699,1759767153817,-1000.0,0.00016438,2]
[389651700,1759767153827,-1000.0,0.00016438,2]
[389651701,1759767153836,-1000.0,0.00016438,2]
[389651702,1759767153846,-1000.0,0.00016438,2]
[389651703,1759767153855,-1094.77594724,0.00016438,2]
[389651704,1759767153865,-1000.0,0.00016438,2]
[389651705,1759767153875,-1000.0,0.00016438,2]
[389651706,1759767153884,-1000.0,0.00016438,2]
[389651707,1759767153893,-1000.0,0.00016438,2]
[389651708,1759767153902,-1000.0,0.00016438,2]
[389651709,1759767153911,-1000.0,0.00016438,2]
[389651710,1759767153922,-1000.0,0.00016438,2]
[389651711,1759767153932,-1000.0,0.00016438,2]
[389651712,1759767153941,-1000.0,0.00016438,2]
[389651713,1759767153951,-279.034759,0.00016438,2]
[389651714,1759767153961,-279.034759,0.00016438,2]
[389651715,1759767153970,-279.034759,0.00016438,2]
[389651716,1759767153980,-279.034759,0.00016438,2]
[389651717,1759767153989,-279.034759,0.00016438,2]
[389651718,1759767153998,-279.034759,0.00016438,2]
[389651719,1759767154007,-279.034759,0.00016438,2]
[389651720,1759767154017,-279.034759,0.00016438,2]
[389651721,1759767154026,-279.034759,0.00016438,2]
[389651722,1759767154037,-279.034759,0.00016438,2]
[389651723,1759767154047,-279.034759,0.00016438,2]
[389651724,1759767154057,-279.034759,0.00016438,2]
[389651725,1759767154070,-1000.0,0.00016438,2]
[389651726,1759767154080,-151.0,0.00016438,2]
[389651727,1759767154090,-151.0,0.00016438,2]
[389651728,1759767154099,-151.0,0.00016438,2]
[389651729,1759767154111,-151.0,0.00016438,2]
[389651730,1759767154120,-151.0,0.00016438,2]
[389651731,1759767154130,-245.0,0.00016438,2]
[389651732,1759767154143,-500.0,0.00016438,2]
[389651733,1759767154152,-159.28177705,0.0001644,2]
[389651734,1759767154162,-162.46,0.0001644,2]
[389651735,1759767154173,-172.62265143,0.00016442,2]
[389651736,1759767154182,-363.48,0.00016458,2]
[389651737,1759767154192,-500.0,0.00016473,2]
[389651738,1759767154202,-500.0,0.00016473,2]
[389651739,1759767154211,-500.0,0.00016473,2]
[389651740,1759767154221,-388.63558128,0.00016473,2]
[389651741,1759767154231,-500.0,0.00016473,2]
[389651742,1759767154241,-500.0,0.00016473,2]
[389651743,1759767154251,-500.0,0.00016473,2]
[389651744,1759767154261,-500.0,0.00016473,2]
[389651745,1759767154270,-500.0,0.00016473,2]
[389651746,1759767154279,-500.0,0.00016473,2]
[389651747,1759767154289,-472.73801596,0.00016473,2]
[389651748,1759767154298,-503.52505579,0.00016473,2]
[389651749,1759767154308,-343.17814072,0.00016473,2]
[389651750,1759767154318,-291.16145992,0.00016473,2]
[389651751,1759767154327,-1075.58324934,0.00016495,2]
[389651752,1759767154337,-152.0,0.00016512,5]
[389651753,1759767154346,-291.0,0.00016532,2]
[389651754,1759767154356,-1790.68918367,0.00016533,2]
[389651755,1759767154366,-805.63,0.00016534,2]
[389651756,1759767154376,-3910.46489009,0.00016556,2]
[389651757,1759767154385,-2907.0,0.00016557,2]
[389651758,1759767154394,-300.0,0.00016558,2]
[389651759,1759767154403,-150.0,0.0001658,2]
[389651760,1759767154412,-291.0,0.00016595,2]
[389651761,1759767154422,-355.16107238,0.000166,2]
[389651762,1759767154431,-150.0,0.00016644,2]
[389651763,1759767154440,-150.0,0.00016644,2]
[389651764,1759767154449,-150.0,0.00016644,2]
[389651765,1759767154459,-150.0,0.00016644,2]
[389651766,1759767154469,-150.0,0.00016644,2]
[389651767,1759767154479,-162.49832762,0.00016644,2]
[389651768,1759767154489,-150.0,0.00016644,2]
[389651769,1759767154498,-150.0,0.00016644,2]
[389651770,1759767154507,-150.0,0.00016644,2]
[389651771,1759767154516,-168.0,0.00016656,2]
[389651772,1759767154526,-168.0,0.00016679,2]
[389651773,1759767154535,-161.73431153,0.00016681,2]
[389651774,1759767154545,-152.0,0.00016695,6]
[389651775,1759767154555,-1000.0,0.00016699,2]
[389651776,1759767154564,-2907.0,0.000167,2]
[389651777,1759767154574,-200.0,0.00016712,2]
[389651778,1759767154583,-200.0,0.00016712,2]
[389651779,1759767154591,-200.0,0.00016712,2]
[389651780,1759767154600,-200.0,0.00016712,2]
[389651781,1759767154610,-200.0,0.00016712,2]
[389651782,1759767154619,-150.0,0.00016712,2]
[389651783,1759767154628,-200.0,0.00016712,2]
[389651784,1759767154637,-150.0,0.00016712,2]
[389651785,1759767154647,-200.0,0.00016712,2]
[389651786,1759767154656,-200.0,0.00016712,2]
[389651787,1759767154665,-200.0,0.00016712,2]
[389651788,1759767154676,-200.0,0.00016712,2]
[389651789,1759767154685,-1577.0,0.00016712,2]
[389651790,1759767154694,-150.0,0.00016712,2]
[389651791,1759767154703,-150.0,0.00016712,2]
[389651792,1759767154713,-200.0,0.00016712,2]
[389651793,1759767154723,-500.0,0.00016712,2]
[389651794,1759767154732,-200.0,0.00016712,2]
[389651795,1759767154741,-200.0,0.00016712,2]
[389651796,1759767154751,-200.0,0.00016712,2]
[389651797,1759767154760,-452.0,0.00016712,2]
[389651798,1759767154769,-200.0,0.00016712,2]
[389651799,1759767154778,-150.0,0.00016712,2]
[389651800,1759767154788,-500.0,0.00016712,2]
[389651801,1759767154797,-200.0,0.00016712,2]
[389651802,1759767154807,-583.0,0.00016712,2]
[389651803,1759767154815,-500.0,0.00016712,2]
[389651804,1759767154824,-500.0,0.00016712,2]
[389651805,1759767154833,-150.0,0.00016712,2]
[389651806,1759767154843,-500.0,0.00016712,2]
[389651807,1759767154852,-200.0,0.00016712,2]
[389651808,1759767154862,-740.0,0.00016712,2]
[389651809,1759767154872,-490.0,0.00016712,2]
[389651810,1759767154881,-150.0,0.00016712,2]
[389651811,1759767154892,-3519.0,0.00016712,2]
[389651812,1759767154901,-150.0,0.00016712,2]
[389651813,1759767154911,-500.0,0.00016712,2]
[389651814,1759767154921,-151.0,0.00016712,2]
[389651815,1759767154930,-151.0,0.00016712,2]
[389651816,1759767154939,-151.0,0.00016712,2]
[389651817,1759767154949,-242.034596,0.00016712,2]
[389651818,1759767154958,-242.034596,0.00016712,2]
[389651819,1759767154967,-242.034596,0.00016712,2]
[389651820,1759767154977,-242.034596,0.00016712,2]
[389651821,1759767154987,-163.02,0.00016712,2]
[389651822,1759767154999,-1680.0,0.00016717,2]
[389651823,1759767155008,-300.0,0.00016748,2]
[389651824,1759767155018,-300.0,0.00016748,2]
[389651825,1759767155029,-300.0,0.00016748,2]
[389651826,1759767155039,-337.080449,0.00016748,5]
[389651827,1759767155047,-214.404971,0.00016748,5]
[389651828,1759767155059,-452.921196,0.00016748,5]
[389651829,1759767155070,-337.080449,0.00016748,5]
[389651830,1759767155079,-214.404971,0.00016748,5]
[389651831,1759767155088,-452.921196,0.00016748,5]
[389651832,1759767155098,-2717.527174,0.00016748,5]
[389651833,1759767155108,-3170.448371,0.00016748,5]
[389651834,1759767155118,-220.547285,0.00016748,5]
[389651835,1759767155127,-155.028885,0.00016748,5]
[389651836,1759767155138,-172.168852,0.00016748,5]
[389651837,1759767155147,-4382.045832,0.00016748,5]
[389651838,1759767155156,-2787.264623,0.00016748,5]
[389651839,1759767155166,-500.0,0.00016748,2]
[389651840,1759767155177,-151.0,0.00016749,2]
[389651841,1759767155187,-151.0,0.00016749,2]
[389651842,1759767155198,-151.0,0.00016749,2]
[389651843,1759767155207,-151.0,0.00016749,2]
[389651844,1759767155216,-384562.58878688,0.00016749,2]
[389651845,1759767155226,-388.756049,0.00016749,2]
[389651846,1759767155234,-388.756049,0.00016749,2]
[389651847,1759767155243,-388.756049,0.00016749,2]
[389651848,1759767155253,-388.756051,0.00016749,2]
[389651849,1759767155263,-151.0,0.00016749,2]
[389651850,1759767155272,-154.30474,0.00016749,2]
[389651851,1759767155282,-307.477977,0.00016749,2]
[389651852,1759767155291,-224.47962,0.00016749,2]
[389651853,1759767155300,-307.477977,0.00016749,2]
[389651854,1759767155309,-307.477977,0.00016749,2]
[389651855,1759767155318,-307.477973,0.00016749,2]
[389651856,1759767155327,-151.0,0.00016749,2]
[389651857,1759767155512,-164.093657,0.00016749,2]
[389651858,1759767155522,-164.093657,0.00016749,2]
[389651859,1759767155531,-164.093657,0.00016749,2]
[389651860,1759767155540,-164.093648,0.00016749,2]
[389651861,1759767155549,-151.0,0.00016749,2]
[389651862,1759767155558,-280.408988,0.00016749,2]
[389651863,1759767155568,-151.0,0.00016749,2]
[389651864,1759767155588,-151.0,0.00016749,2]
[389651865,1759767155598,-151.0,0.00016749,2]
[389651866,1759767155608,-151.0,0.00016749,2]
[389651867,1759767155619,-151.0,0.00016749,2]
[389651868,1759767155629,-300.0,0.00016765,2]
[389651869,1759767155639,-1790.68918367,0.00016767,2]
[389651870,1759767155648,-150.0,0.00016791,2]
[389651871,1759767155658,-334.5472959,0.00016798,2]
[389651872,1759767155668,-239.84119403,0.00016798,2]
[389651873,1759767155678,-500.0,0.00016804,2]
[389651874,1759767155688,-805.63,0.00016808,2]
[389651875,1759767155698,-5135.97,0.00016808,2]
[389651876,1759767155709,-3910.46489009,0.00016811,2]
[389651877,1759767155719,-152.0,0.00016878,7]
[389651878,1759767155729,-6500.0,0.000169,6]
[389651879,1759767155739,-500.0,0.000169,2]
[389651880,1759767155748,-532.12330476,0.000169,2]
[389651881,1759767155758,-2000.0,0.00016986,2]
[389651882,1759767155767,-250.0,0.00016986,2]
[389651883,1759767155777,-150.0,0.00016986,2]
[389651884,1759767155787,-1577.0,0.00016986,2]
[389651885,1759767155798,-150.0,0.00016986,2]
[389651886,1759767155808,-274.0,0.00016986,2]
[389651887,1759767155819,-150.0,0.00016986,2]
[389651888,1759767155830,-452.0,0.00016986,2]
[389651889,1759767155841,-150.0,0.00016986,2]
[389651890,1759767155850,-150.0,0.00016986,2]
[389651891,1759767155860,-583.0,0.00016986,2]
[389651892,1759767155870,-500.0,0.00016986,2]
[389651893,1759767155880,-200.0,0.00016986,2]
[389651894,1759767155889,-200.0,0.00016986,2]
[389651895,1759767155900,-500.0,0.00016986,2]
[389651896,1759767155910,-740.0,0.00016986,2]
[389651897,1759767155923,-490.0,0.00016986,2]
[389651898,1759767155933,-150.0,0.00016986,2]
[389651899,1759767155943,-3519.0,0.00016986,2]
[389651900,1759767155952,-206.43866259,0.00016986,2]
[389651901,1759767155962,-500.0,0.00016986,2]
[389651902,1759767155971,-225.916939,0.00016986,2]
[389651903,1759767155984,-242.034596,0.00016986,2]
[389651904,1759767155994,-242.034596,0.00016986,2]
[389651905,1759767156003,-242.034596,0.00016986,2]
[389651906,1759767156013,-242.034588,0.00016986,2]
[389651907,1759767156024,-1096.69920968,0.00016986,2]
[389651908,1759767156035,-1000.0,0.00016999,2]
[389651909,1759767156045,-300.0,0.00016999,2]
[389651910,1759767156058,-300.0,0.00016999,2]
[389651911,1759767156070,-300.0,0.00016999,2]
[389651912,1759767156079,-300.0,0.00016999,2]
[389651913,1759767156089,-300.0,0.00016999,2]
[389651914,1759767156099,-300.0,0.00016999,2]
[389651915,1759767156108,-300.0,0.00016999,2]
[389651916,1759767156118,-300.0,0.00016999,2]
[389651917,1759767156128,-300.0,0.00016999,2]
[389651918,1759767156139,-300.0,0.00016999,2]
[389651919,1759767156148,-300.0,0.00016999,2]
[389651920,1759767156158,-8059.03171203,0.00017,15]
[389651921,1759767156168,-500.0,0.00017,3]
[389651922,1759767156179,-380739.64871742,0.00017,2]
[389651923,1759767156189,-3600.0,0.00017,3]
[389651924,1759767156198,-4001.2795304,0.00017,2]
[389651925,1759767156208,-279.034759,0.00017,2]
[389651926,1759767156222,-279.034759,0.00017,2]
[389651927,1759767156232,-279.034759,0.00017,2]
[389651928,1759767156243,-279.034759,0.00017,2]
[389651929,1759767156254,-151.0,0.00017,2]
[389651930,1759767156263,-151.0,0.00017,2]
[389651931,1759767156273,-250.0,0.00017,2]
[389651932,1759767156283,-151.0,0.00017,2]
[389651933,1759767156292,-151.0,0.00017,2]
[389651934,1759767156303,-151.0,0.00017,2]
[389651935,1759767156314,-151.0,0.00017,2]
[389651936,1759767156324,-151.0,0.00017,2]
[389651937,1759767156333,-151.0,0.00017,2]
[389651938,1759767156343,-151.0,0.00017,2]
[389651939,1759767156353,-241.509908,0.00017,2]
[389651940,1759767156363,-322.803583,0.00017,2]
[389651941,1759767156374,-322.803583,0.00017,2]
[389651942,1759767156384,-322.803583,0.00017,2]
[389651943,1759767156394,-322.803587,0.00017,2]
[389651944,1759767156404,-1790.68918367,0.00017,2]
[389651945,1759767156413,-1000.0,0.00017021,2]
[389651946,1759767156424,-1000.0,0.00017021,2]
[389651947,1759767156434,-182.79986828,0.00017035,18]
[389651948,1759767156448,-161.18,0.00017053,2]
[389651949,1759767156459,-152.0,0.00017061,8]
[389651950,1759767156470,-337.080449,0.00017065,5]
[389651951,1759767156480,-214.404971,0.00017065,5]
[389651952,1759767156490,-452.921196,0.00017065,5]
[389651953,1759767156499,-337.080449,0.00017065,5]
[389651954,1759767156509,-214.404971,0.00017065,5]
[389651955,1759767156519,-452.921196,0.00017065,5]
[389651956,1759767156530,-151.723226,0.00017065,5]
[389651957,1759767156539,-2717.527174,0.00017065,5]
[389651958,1759767156549,-3170.448371,0.00017065,5]
[389651959,1759767156560,-220.547285,0.00017065,5]
[389651960,1759767156571,-155.028885,0.00017065,5]
[389651961,1759767156581,-172.168852,0.00017065,5]
[389651962,1759767156591,-4382.045832,0.00017065,5]
[389651963,1759767156600,-2787.264623,0.00017065,5]
[389651964,1759767156610,-3910.46489009,0.00017067,2]
[389651965,1759767156620,-805.63,0.00017082,2]
[389651966,1759767156630,-5135.97,0.00017082,2]
[389651967,1759767156639,-182.79986828,0.00017085,19]
[389651968,1759767156649,-4001.94196472,0.000171,2]
[389651969,1759767156659,-150.0,0.000171,2]
[389651970,1759767156669,-182.79986828,0.00017134,21]
[389651971,1759767156683,-554.31,0.00017154,2]
[389651972,1759767156692,-175.72,0.00017154,2]
[389651973,1759767156702,-1197.76,0.00017154,2]
[389651974,1759767156711,-170.15,0.00017154,2]
[389651975,1759767156722,-150.0,0.00017154,2]
[389651976,1759767156731,-400.0,0.0001717,2]
[389651977,1759767156741,-400.0,0.0001717,2]
[389651978,1759767156750,-182.79986828,0.00017184,22]
[389651979,1759767156760,-476.02,0.000172,7]
[389651980,1759767156769,-363.48,0.00017206,2]
[389651981,1759767156779,-1090.0,0.00017219,2]
[389651982,1759767156788,-182.79986828,0.00017233,24]
[389651983,1759767156798,-1790.68918367,0.00017233,2]
[389651984,1759767156808,-152.0,0.00017244,9]
[389651985,1759767156818,-2717.527174,0.00017253,2]
[389651986,1759767156828,-3170.448371,0.00017253,2]
[389651987,1759767156838,-220.547285,0.00017253,2]
[389651988,1759767156848,-155.028885,0.00017253,2]
[389651989,1759767156857,-172.168852,0.00017253,2]
[389651990,1759767156866,-4382.045832,0.00017253,2]
[389651991,1759767156876,-2787.264623,0.00017253,2]
[389651992,1759767156886,-150.0,0.0001726,2]
[389651993,1759767156896,-1577.0,0.0001726,2]
[389651994,1759767156908,-198.34808751,0.0001726,2]
[389651995,1759767156920,-452.0,0.0001726,2]
[389651996,1759767156931,-150.0,0.0001726,2]
[389651997,1759767156941,-583.0,0.0001726,2]
[389651998,1759767156950,-500.0,0.0001726,2]
[389651999,1759767156960,-500.0,0.0001726,2]
[389652000,1759767156970,-740.0,0.0001726,2]
[389652001,1759767156979,-490.0,0.0001726,2]
[389652002,1759767156989,-150.0,0.0001726,2]
[389652003,1759767156998,-3519.0,0.0001726,2]
[389652004,1759767157008,-500.0,0.0001726,2]
[389652005,1759767157017,-151.0,0.0001726,2]
[389652006,1759767157027,-150.0,0.0001726,2]
[389652007,1759767157036,-337.080449,0.00017268,2]
[389652008,1759767157046,-214.404971,0.00017268,2]
[389652009,1759767157056,-452.921196,0.00017268,2]
[389652010,1759767157069,-337.080449,0.00017268,2]
[389652011,1759767157078,-214.404971,0.00017268,2]
[389652012,1759767157088,-452.921196,0.00017268,2]
[389652013,1759767157097,-337.080449,0.0001728,7]
[389652014,1759767157107,-214.404971,0.0001728,7]
[389652015,1759767157117,-452.921196,0.0001728,7]
[389652016,1759767157126,-337.080449,0.0001728,7]
[389652017,1759767157139,-214.404971,0.0001728,7]
[389652018,1759767157148,-452.921196,0.0001728,7]
[389652019,1759767157157,-2717.527174,0.0001728,7]
[389652020,1759767157167,-3170.448371,0.0001728,7]
[389652021,1759767157178,-220.547285,0.0001728,7]
[389652022,1759767157187,-172.168852,0.0001728,7]
[389652023,1759767157197,-4382.045832,0.0001728,7]
[389652024,1759767157206,-2787.264623,0.0001728,7]
[389652025,1759767157219,-182.79986828,0.00017283,25]
[389652026,1759767157228,-155.62,0.00017299,2]
[389652027,1759767157238,-790.0,0.000173,4]
[389652028,1759767157247,-2000.0,0.000173,2]
[389652029,1759767157257,-3910.46489009,0.00017322,2]
[389652030,1759767157267,-182.79986828,0.00017332,26]
[389652031,1759767157277,-1600.0,0.00017334,2]
[389652032,1759767157287,-805.65,0.00017356,2]
[389652033,1759767157297,-5135.97,0.00017356,2]
[389652034,1759767157306,-291.0,0.00017368,2]
[389652035,1759767157316,-182.79986828,0.00017382,28]
[389652036,1759767157325,-337.080449,0.00017382,5]
[389652037,1759767157335,-214.404971,0.00017382,5]
[389652038,1759767157345,-452.921196,0.00017382,5]
[389652039,1759767157354,-337.080449,0.00017382,5]
[389652040,1759767157364,-214.404971,0.00017382,5]
[389652041,1759767157383,-452.921196,0.00017382,5]
[389652042,1759767157394,-151.723226,0.00017382,5]
[389652043,1759767157404,-2717.527174,0.00017382,5]
[389652044,1759767157414,-3170.448371,0.00017382,5]
[389652045,1759767157424,-220.547285,0.00017382,5]
[389652046,1759767157434,-155.028885,0.00017382,5]
[389652047,1759767157444,-172.168852,0.00017382,5]
[389652048,1759767157454,-4382.045832,0.00017382,5]
[389652049,1759767157463,-2787.264623,0.00017382,5]
[389652050,1759767157473,-152.0,0.00017426,10]
[389652051,1759767157483,-8000.0,0.00017428,3]
[389652052,1759767157492,-370.68887098,0.0001743,3]
[389652053,1759767157502,-182.79986828,0.00017431,29]
[389652054,1759767157512,-16760.0,0.00017463,7]
[389652055,1759767157522,-169.4356582,0.00017464,3]
[389652056,1759767157531,-150.0,0.00017468,2]
[389652057,1759767157542,-150.48,0.00017468,2]
[389652058,1759767157552,-150.0,0.00017468,2]
[389652059,1759767157562,-370.68887098,0.0001747,7]
[389652060,1759767157572,-155.6,0.00017478,2]
[389652061,1759767157582,-182.79986828,0.00017481,30]
[389652062,1759767157592,-22613.96,0.000175,2]
[389652063,1759767157602,-2099.76,0.000175,2]
[389652064,1759767157612,-20000.0,0.000175,2]
[389652065,1759767157622,-182.79986828,0.0001753,30]
[389652066,1759767157633,-170.64122882,0.00017534,2]
[389652067,1759767157643,-1577.0,0.00017534,2]
[389652068,1759767157654,-452.0,0.00017534,2]
[389652069,1759767157665,-583.0,0.00017534,2]
[389652070,1759767157675,-500.0,0.00017534,2]
[389652071,1759767157686,-500.0,0.00017534,2]
[389652072,1759767157695,-740.0,0.00017534,2]
[389652073,1759767157705,-490.0,0.00017534,2]
[389652074,1759767157716,-158.53994612,0.00017534,2]
[389652075,1759767157726,-3519.0,0.00017534,2]
[389652076,1759767157735,-500.0,0.00017534,2]
[389652077,1759767157745,-151.0,0.00017534,2]
[389652078,1759767157754,-1000.0,0.00017534,2]
[389652079,1759767157763,-1500.0,0.00017568,2]
[389652080,1759767157773,-1500.0,0.00017568,2]
[389652081,1759767157784,-150.0,0.00017568,2]
[389652082,1759767157795,-345.0,0.0001757,2]
[389652083,1759767157805,-337.080449,0.00017576,7]
[389652084,1759767157816,-214.404971,0.00017576,7]
[389652085,1759767157830,-452.921196,0.00017576,7]
[389652086,1759767157840,-337.080449,0.00017576,7]
[389652087,1759767157849,-214.404971,0.00017576,7]
[389652088,1759767157859,-452.921196,0.00017576,7]
[389652089,1759767157869,-2717.527174,0.00017576,7]
[389652090,1759767157878,-3170.448371,0.00017576,7]
[389652091,1759767157887,-220.547285,0.00017576,7]
[389652092,1759767157897,-155.028885,0.00017576,7]
[389652093,1759767157906,-172.168852,0.00017576,7]
[389652094,1759767157915,-4382.045832,0.00017576,7]
[389652095,1759767157925,-2787.264623,0.00017576,7]
[389652096,1759767157935,-3910.46489009,0.00017578,2]
[389652097,1759767157944,-182.79986828,0.0001758,30]